Cogmind - Beta 11 X6 @@@ ROGUE MODE // 2021.08.11 @ 16:15:06 // AFD2020/Player2 Player: RIFstack core death Result: Destroyed by H-88 Terminator with KE Penetrator Performance ------------- Evolutions (9) 4500 Regions Visited (28) 5600 Robots Destroyed (150) 750 Value Destroyed (10820) 10820 Prototype IDs (31) 620 Alien Tech Used (0) 0 Bonus (28689) 28689 TOTAL SCORE: 50979 Bonus ------- Triggered High Security 500 High Alert Combat Kills 2498 Follower Combat Kills 25012 Entered Garrisons 2200 Used RIF Installer 5500 Friendly Fire -7021 Cogmind --------- Core Integrity 0/1600 Matter 300/300 Energy 190/190 System Corruption 7% Temperature Cool (83) Movement Rolling (150) Ox3 Location -1/Command Parts ------- > --- POWER (1) -------- Light Quantum Reactor > --- PROPULSION (2) --- High-density Centrium Wheel High-density Centrium Wheel > --- UTILITY (20) ----- Huge Storage Unit Advanced Visual Processing Unit Advanced Launcher Guidance Computer Quantum Capacitor Improved Core Shielding Centrium Heavy Armor Plating Experimental Focal Shield Relay Coupler [C] (51) Relay Coupler [C] (43) Relay Coupler [C] (46) Relay Coupler [C] (49) Relay Coupler [C] (41) Relay Coupler [C] (48) Relay Coupler [C] (40) Relay Coupler [C] (44) Relay Coupler [Demolisher] (14) Relay Coupler [Specialist] (7) Relay Coupler [Hunter] (4) > --- WEAPON (2) ------- Tesla Rifle Micro-nuke Launcher > --- INVENTORY (25) --- Medium Treads Advanced Heavy Treads Enhanced Biometal Leg Enhanced Biometal Leg Enhanced Biometal Leg Centrium Wheel Advanced Heat Sink Advanced Heat Sink Quantum Shading Machine Improved Armor Integrity Analyzer Improved Core Shielding Relay Coupler [Sentry] (28) Relay Coupler [Heavy] (15) Heavy Laser Helical Railgun Containment Facilitator (1) Advanced Datajack Advanced Remote Datajack Advanced Remote Datajack Powered Hammer Peak State ------------ > --- POWER ------------ Light Quantum Reactor > --- PROPULSION ------- High-density Centrium Wheel High-density Centrium Wheel > --- UTILITY ---------- Huge Storage Unit Advanced Visual Processing Unit Quantum Capacitor Centrium Heavy Armor Plating Experimental Focal Shield Relay Coupler [C] Relay Coupler [C] Relay Coupler [C] Relay Coupler [C] Relay Coupler [C] Relay Coupler [C] Relay Coupler [C] Relay Coupler [C] Relay Coupler [C] Relay Coupler [C] Relay Coupler [Demolisher] Relay Coupler [Specialist] Relay Coupler [Hunter] > --- WEAPON ----------- Containment Facilitator Advanced Remote Datajack > --- INVENTORY -------- Advanced Heavy Treads Enhanced Biometal Leg Enhanced Biometal Leg Enhanced Biometal Leg Centrium Wheel Quantum Shading Machine Advanced Launcher Guidance Computer Improved Armor Integrity Analyzer Relay Coupler [Sentry] Relay Coupler [Heavy] Tesla Rifle Heavy Laser Helical Railgun Micro-nuke Launcher Containment Facilitator Advanced Datajack Advanced Remote Datajack [Rating: 198] Favorites ----------- Power Light Quantum Reactor Engine Cooled Ion Engine Power Core Micro Fission Core Reactor Light Quantum Reactor Propulsion High-density Centrium Wheel Treads Medium Treads Leg Aluminum Leg Wheel High-density Centrium Wheel Flight Unit Cooled VTOL Module Utility Relay Coupler [C] Device Experimental Focal Shield Storage Huge Storage Unit Processor Advanced Visual Processing Unit Hackware Relay Coupler [C] Protection Centrium Heavy Armor Plating Weapon Cooled Phase Cannon Energy Gun Tesla Rifle Energy Cannon Cooled Phase Cannon Ballistic Gun Autogun Launcher Tesla Bomb Launcher Special Weapon Advanced Remote Datajack Impact Weapon Powered Hammer Slashing Weapon Segregator Special Melee Weapon Advanced Datajack Build | -11 -10 -10 -9 -9 -9 -8 -8 -7 -7 -7 -7 -6 -6 -5 -5 -4 -4 -4 -4 -3 -3 -3 -2 -2 -1 -1 -1 -1 ------- Run | Scr Mat Min Mat Sto Gar Mat Gar Fac Gar Fac Gar Fac Gar Fac Gar Fac Gar Fac Gar Res Gar Arm Res Gar Acc Gar Acc Com Slots Evolved 18 | . . . 2 . . 2 . 2 . . . 2 . 2 . 2 . . . 2 . . 2 . 2 . . . Power . | . . . . . . . . . . . . . . . . . . . . . . . . . . . . . Propulsion . | . . . . . . . . . . . . . . . . . . . . . . . . . . . . . Utility 18 | . . . 2 . . 2 . 2 . . . 2 . 2 . 2 . . . 2 . . 2 . 2 . . . Weapon . | . . . . . . . . . . . . . . . . . . . . . . . . . . . . . Parts Attached 383 | 12 23 . 9 16 3 2 4 10 5 . 6 9 13 8 7 24 11 4 9 40 3 29 1 15 2 14 22 82 Power 43 | 2 6 . 4 2 . . . . . . 1 . 2 1 . 2 1 . 1 4 . 2 . 1 . 1 2 11 Engine 20 | 2 6 . 4 2 . . . . . . 1 . 2 1 . 1 1 . . . . . . . . . . . Core 3 | . . . . . . . . . . . . . . . . . . . 1 2 . . . . . . . . Reactor 20 | . . . . . . . . . . . . . . . . 1 . . . 2 . 2 . 1 . 1 2 11 Propulsion 41 | 4 5 . 1 3 1 . . 1 1 . . . 1 . . 1 . 2 . 7 . 4 . . . . 1 9 Treads 4 | 2 . . . . . . . . . . . . . . . . . . . . . . . . . . . 2 Leg 7 | 2 5 . . . . . . . . . . . . . . . . . . . . . . . . . . . Wheel 29 | . . . 1 2 1 . . 1 1 . . . 1 . . 1 . 2 . 7 . 4 . . . . 1 7 Hover . | . . . . . . . . . . . . . . . . . . . . . . . . . . . . . Flight 1 | . . . . 1 . . . . . . . . . . . . . . . . . . . . . . . . Utility 165 | 3 8 . 3 7 2 2 . 7 4 . 2 5 8 5 5 5 6 2 1 17 3 11 1 8 2 8 11 29 Device 53 | 2 3 . 1 3 1 2 . 2 4 . . 1 4 1 2 . . . . 4 . 6 . . . 1 5 11 Storage 5 | 1 . . . 1 . . . 1 . . . 1 1 . . . . . . . . . . . . . . . Processor 7 | . 1 . . . 1 . . . . . . . . . . . . 1 . 2 . . . . . . 1 1 Hackware 68 | . . . . . . . . 4 . . 2 3 2 2 2 4 5 1 1 7 3 3 1 7 2 7 2 10 Protection 32 | . 4 . 2 3 . . . . . . . . 1 2 1 1 1 . . 4 . 2 . 1 . . 3 7 Artifact . | . . . . . . . . . . . . . . . . . . . . . . . . . . . . . Weapon 134 | 3 4 . 1 4 . . 4 2 . . 3 4 2 2 2 16 4 . 7 12 . 12 . 6 . 5 8 33 Energy Gun 7 | . 1 . . . . . . . . . . . . . . . . . . . . . . . . . . 6 Energy Cannon 48 | . . . . 1 . . 1 1 . . . 4 . . 2 9 2 . 3 1 . 6 . 3 . 3 4 8 Ballistic Gun 21 | 2 3 . 1 3 . . 2 1 . . 3 . 2 2 . . . . . . . 2 . . . . . . Ballistic Cannon . | . . . . . . . . . . . . . . . . . . . . . . . . . . . . . Launcher 9 | . . . . . . . 1 . . . . . . . . . . . 1 4 . 1 . . . . . 2 Special Weapon 41 | 1 . . . . . . . . . . . . . . . 7 2 . 3 7 . 3 . 3 . 2 4 9 Impact Weapon 3 | . . . . . . . . . . . . . . . . . . . . . . . . . . . . 3 Slashing Weapon 1 | . . . . . . . . . . . . . . . . . . . . . . . . . . . . 1 Piercing Weapon . | . . . . . . . . . . . . . . . . . . . . . . . . . . . . . Special Melee Weapon 4 | . . . . . . . . . . . . . . . . . . . . . . . . . . . . 4 Unidentified Prototypes 16 | . . . . 2 . . . . . . . 1 . . . . . 1 . 3 . 5 . . . . 2 2 Corrupted Parts 1 | . . . . . . . . . . . . . . . . . . . . . . . . . . . . 1 System Corruption 2 | . . . . . . . . . . . . . . . . . . . . . . . . . . . . 2 Parts Lost 34 | . . . . 1 . . . . . . 1 . 5 . 1 . . . 1 10 . 2 . 1 . 1 . 11 Power 6 | . . . . . . . . . . . . . . . . . . . . . . 1 . . . . . 5 Propulsion 2 | . . . . . . . . . . . . . 1 . . . . . . 1 . . . . . . . . Utility 20 | . . . . 1 . . . . . . 1 . 4 . 1 . . . 1 7 . 1 . . . 1 . 3 Weapon 6 | . . . . . . . . . . . . . . . . . . . . 2 . . . 1 . . . 3 Highest Loss Streak 7 | . . . . 1 . . . . . . 1 . 3 . 1 . . . 1 7 . 1 . 1 . 1 . 2 Average Slot Usage (%) 93 | . 99 100 99 99 100 81 100 93 91 92 90 92 91 92 94 93 91 93 92 94 99 96 90 85 86 89 95 93 Engine 2 | . 14 14 11 11 11 9 9 7 7 7 7 6 6 5 5 2 . 5 1 . . . . . . . . . Reactor 2 | . . . . . . . . . . . . . . . . 2 4 . . 2 4 4 4 1 . 2 4 3 Leg 2 | . 28 28 18 2 . . . . . . . . . . . . . . . . . . . . . . . . Wheel 7 | . . . 3 19 22 18 18 8 7 7 7 6 5 5 5 4 5 4 5 5 9 9 8 8 8 8 8 7 Device 6 | . 11 14 18 24 33 27 45 24 22 23 18 8 10 5 2 . . . . 1 . 1 4 . . 2 4 5 Storage 4 | . . . . 8 11 9 9 15 15 15 15 13 7 5 5 5 5 5 5 4 4 4 4 4 4 4 4 4 Processor 2 | . 2 . . . . . . . . . . . . . . . . . . 2 4 4 4 4 4 4 4 4 Hackware 47 | . . . . . . . . 21 23 23 25 43 42 52 58 67 61 67 66 59 64 59 51 52 54 54 57 54 Protection 5 | . 13 14 24 11 . . . . . . . . 2 4 1 . 3 . . 4 . 1 4 4 8 5 5 5 Energy Cannon 4 | . . . . . . . . . . . . 5 3 . 7 8 9 10 8 3 4 5 8 7 8 7 7 3 Ballistic Gun 4 | . 21 28 22 21 22 18 18 15 15 15 14 7 9 10 3 . . . . . . . . . . . . . Special Weapon 1 | . 1 . . . . . . . . . . . . . . 1 . . . 3 4 2 . . . . . 2 Naked Turns . | . . . . . . . . . . . . . . . . . . . . . . . . . . . . . Heaviest Build 170 | 12 16 16 22 48 48 60 61 64 54 54 55 48 108 99 100 105 105 97 98 130 108 164 164 164 146 158 145 170 Greatest Support 60 | 40 20 20 20 28 28 24 24 28 28 28 28 28 28 28 28 28 28 28 28 36 32 32 32 32 32 32 56 60 Greatest Overweight (x) 11 | 3 . . 1 3 1 2 2 2 1 1 1 1 3 3 3 3 3 3 3 11 3 5 5 5 4 4 4 6 Average Overweight (x) 2 | . . . . . 1 1 2 1 1 1 1 1 2 3 3 3 3 3 3 3 3 3 5 3 4 4 3 2 Largest Inventory Capacity 25 | 8 8 5 5 15 15 15 15 15 15 15 15 15 25 25 25 25 25 25 25 25 25 25 25 25 25 25 25 25 Average Capacity 22 | 5 5 5 5 12 15 15 15 15 15 15 15 15 24 25 25 25 25 25 25 25 25 25 25 25 25 25 25 25 Most Carried 25 | 7 6 5 5 15 15 14 15 15 15 15 15 15 25 24 25 25 25 25 25 25 25 25 25 25 25 25 25 25 Average Carried 20 | 1 4 5 4 9 14 13 13 14 14 15 14 14 21 23 22 24 24 23 24 24 23 24 23 23 24 24 24 21 Final Capacity 25 | 8 5 5 5 15 15 15 15 15 15 15 15 15 25 25 25 25 25 25 25 25 25 25 25 25 25 25 25 25 Final Carried 25 | 7 5 5 5 15 14 12 15 15 15 15 15 15 25 23 25 25 25 23 25 22 25 25 24 24 25 25 25 21 Class Distribution -------------------- 75% | Botlord-Mutant 22% | Mutant Dominant Class ---------------- Mutant | -10/Materials Mutant | -10/Mines Mutant | -9/Materials Mutant | -9/Storage Mutant | -9/Garrison Mutant | -8/Materials Mutant | -8/Garrison Mutant | -7/Factory Mutant | -7/Garrison Mutant | -7/Factory Mutant | -7/Garrison Mutant | -6/Factory Scavenger-Mutant | -6/Garrison Scavenger-Mutant | -5/Factory Mutant | -5/Garrison Botlord-Mutant | -4/Factory Botlord-Mutant | -4/Garrison Botlord-Mutant | -4/Factory Botlord-Mutant | -4/Garrison Botlord-Mutant | -3/Research Botlord-Mutant | -3/Garrison Botlord-Mutant | -3/Armory Botlord-Mutant | -2/Research Botlord-Mutant | -2/Garrison Botlord-Mutant | -1/Access Botlord-Mutant | -1/Garrison Botlord-Mutant | -1/Access Botlord-Mutant | -1/Command Resources | -11 -10 -10 -9 -9 -9 -8 -8 -7 -7 -7 -7 -6 -6 -5 -5 -4 -4 -4 -4 -3 -3 -3 -2 -2 -1 -1 -1 -1 ----------- Run | Scr Mat Min Mat Sto Gar Mat Gar Fac Gar Fac Gar Fac Gar Fac Gar Fac Gar Fac Gar Res Gar Arm Res Gar Acc Gar Acc Com Matter Collected 7575 | 361 381 64 95 463 276 . 188 . 276 . 307 180 302 . 153 318 172 . 165 796 220 535 10 195 . 260 470 1388 Remotely 246 | 246 . . . . . . . . . . . . . . . . . . . . . . . . . . . . Salvage Created 7530 | 142 343 51 43 391 514 . 45 . 120 . 225 203 552 . 63 81 . . . 1083 . 58 114 167 . 106 845 2384 Parts 366 | 11 17 2 5 23 30 . 5 . 12 . 12 8 16 . 3 5 . . . 60 . 5 5 5 . 3 40 99 Haulers Intercepted 9 | . 2 . . 2 . . . . . . . . . . . . . . . . . . 1 . . . 4 . Recyclers Shooed 7 | . 1 . . 1 . . . . . . . . . . . 2 . . . 2 . . . . . . . 1 Parts Field Recycled . | . . . . . . . . . . . . . . . . . . . . . . . . . . . . . Retrieved Matter . | . . . . . . . . . . . . . . . . . . . . . . . . . . . . . Parts Self-Destructed . | . . . . . . . . . . . . . . . . . . . . . . . . . . . . . Prevented . | . . . . . . . . . . . . . . . . . . . . . . . . . . . . . Kills | -11 -10 -10 -9 -9 -9 -8 -8 -7 -7 -7 -7 -6 -6 -5 -5 -4 -4 -4 -4 -3 -3 -3 -2 -2 -1 -1 -1 -1 ------- Run | Scr Mat Min Mat Sto Gar Mat Gar Fac Gar Fac Gar Fac Gar Fac Gar Fac Gar Fac Gar Res Gar Arm Res Gar Acc Gar Acc Com Combat Hostiles Destroyed 107 | . 6 4 2 5 13 . 3 . 5 . 7 3 9 . 1 1 . . . 11 . 1 . 2 . 1 3 30 Guns 50 | . 6 4 2 5 13 . 1 . 5 . 7 3 1 . . . . . . . . . . . . . . 3 Cannons 45 | . . . . . . . . . . . . . 7 . 1 1 . . . 5 . 1 . 2 . 1 3 24 AOE 6 | . . . . . . . 2 . . . . . . . . . . . . 4 . . . . . . . . Classes Destroyed 18 | 2 4 1 . 1 . . . . . . . 1 1 . . 2 . . . 2 . . . . . . 1 3 Worker 10 | . . . . 3 . . . . . . . . . . . . . . . 3 . . . . . . 1 3 Builder 2 | . . . . . . . . . . . . . . . . 1 . . . 1 . . . . . . . . Tunneler 5 | 4 . . . . . . . . . . . 1 . . . . . . . . . . . . . . . . Hauler 9 | . 2 . . 2 . . . . . . . . . . . . . . . . . . 1 . . . 4 . Recycler 5 | 1 1 . . 2 . . . . . . . . . . . . . . . 1 . . . . . . . . Mechanic 2 | . . . . . . . . . . . . . . . . . . . . . . . . . . . . 2 Operator 1 | . . . . . . . . . . . . 1 . . . . . . . . . . . . . . . . Watcher 6 | . 1 . 1 1 . . . . . . . . . . . . . . . 1 . . . . . . . 2 Swarmer 32 | . 3 1 2 2 8 . 2 . 5 . 3 . . . . . . . . 3 . . . . . 1 . 2 Grunt 32 | . 3 . . 3 5 . 1 . . . 4 3 8 . 1 . . . . . . . . . . 1 . 3 Protector 1 | . . . . . . . . . . . . . . . . . . . . 1 . . . . . . . . Sentry 2 | . . . . . . . . . . . . . . . . . . . . 1 . . . 1 . . . . Demolisher 2 | . . . . . . . . . . . . . . . . . . . . . . . . . . . . 2 Hunter 10 | . . . . . . . . . . . . . 1 . . . . . . 2 . . . 1 . . 1 5 Programmer 28 | . . . . . . . . . . . . . . . . 1 . . . 6 . 1 . . . . 2 18 Behemoth 1 | . . . . . . . . . . . . . . . . . . . . . . . . . . . 1 . Striker 2 | . . . . . . . . . . . . . . . . . . . . . . . . . . . . 2 Assembled 3 | . . 3 . . . . . . . . . . . . . . . . . . . . . . . . . . Best Kill Streak 7 | 4 3 1 2 4 3 . 3 . 2 . 4 2 7 . 1 1 . . . 7 . 1 1 2 . 1 1 3 Combat Bots Only 7 | . 3 1 2 2 3 . 3 . 2 . 4 2 7 . 1 1 . . . 6 . 1 . 2 . 1 1 3 Max Kills in Single Turn 2 | 1 1 1 1 1 2 . 2 . 1 . 1 1 1 . 1 1 . . . 2 . 1 1 1 . 2 1 1 Gunslinging 1 | . . . . . 1 . . . . . . . . . . . . . . . . . . . . . . . Exploded 2 | . . . . . . . 2 . . . . . . . . . . . . 2 . . . . . . . . Melee . | . . . . . . . . . . . . . . . . . . . . . . . . . . . . . Uniques/NPCs Destroyed . | . . . . . . . . . . . . . . . . . . . . . . . . . . . . . Combat | -11 -10 -10 -9 -9 -9 -8 -8 -7 -7 -7 -7 -6 -6 -5 -5 -4 -4 -4 -4 -3 -3 -3 -2 -2 -1 -1 -1 -1 -------- Run | Scr Mat Min Mat Sto Gar Mat Gar Fac Gar Fac Gar Fac Gar Fac Gar Fac Gar Fac Gar Res Gar Arm Res Gar Acc Gar Acc Com Damage Taken 11731 | . 87 13 20 316 227 . 130 . 382 . 398 246 758 . 184 186 178 . 376 1590 235 356 . 541 . 269 695 4544 Core 1640 | . 11 . 6 49 23 . . . 19 . 43 82 156 . 37 50 101 . 36 302 92 72 . . . . 68 493 Absorbed by Shields 833 | . 17 6 8 118 88 . 52 . 150 . 160 49 15 . . . . . . 121 19 10 . . . . . 20 Reduced by Siege Mode 5 | . . . . . . . . . . . . . . . . . . . . . . . . . . . . 5 Core Remaining (%) 73 | 100 . 82 . . 69 . 87 . . . 85 . 46 . 96 . . . 76 . . 7 . 86 . . . . Volleys Fired 955 | 21 45 8 4 44 41 . 22 . 21 . 34 27 31 . 8 25 11 . 14 108 23 56 5 22 . 14 61 310 Largest 2 | 2 2 2 2 2 2 . 2 . 2 . 2 2 2 . 2 2 2 . 2 1 1 2 2 2 . 2 2 2 Hottest 180 | 40 100 46 46 68 46 . 68 . 46 . 51 180 180 . 180 180 180 . 180 90 90 90 80 80 . 80 120 80 Shots Fired 1491 | 42 71 16 8 87 82 . 40 . 42 . 66 54 62 . 16 33 15 . 23 108 23 86 10 39 . 21 109 438 Gun 549 | 42 64 16 8 86 82 . 36 . 42 . 66 48 20 . 2 . . . . . . . . . . . . 37 Cannon 776 | . . . . 1 . . 2 . . . . 6 42 . 14 17 10 . 19 59 10 66 10 34 . 14 96 376 Launcher 12 | . . . . . . . 2 . . . . . . . . . . . . 8 . . . . . . . 2 Special 154 | . 7 . . . . . . . . . . . . . . 16 5 . 4 41 13 20 . 5 . 7 13 23 Kinetic 492 | 42 44 16 8 86 82 . 36 . 42 . 66 48 20 . 2 . . . . . . . . . . . . . Thermal 819 | . 27 . . 1 . . 2 . . . . 6 42 . 14 17 10 . 19 59 10 66 10 34 . 14 96 392 Explosive 3 | . . . . . . . 2 . . . . . . . . . . . . . . . . . . . . 1 Electromagnetic 29 | . . . . . . . . . . . . . . . . . . . . 8 . . . . . . . 21 Robot Hit Streak 63 | 6 8 4 5 18 62 . 63 . 9 . 6 8 11 . 2 13 14 . 17 7 10 13 4 8 . 3 16 10 Robot Miss Streak 7 | 3 3 3 2 3 1 . 2 . 3 . 7 2 2 . 7 1 . . 3 3 2 2 1 3 . 1 4 6 Penetration Max . | . . . . . . . . . . . . . . . . . . . . . . . . . . . . . Secondary Targets 4 | . . . . . 2 . . . . . 2 . . . . . . . . . . . . . . . . . Max Gunslinging Chain 1 | . . . . . 1 . . . . . 1 . . . . . . . . . . . . . . . . . Capacitor 71 | . . . . . . . . . . . . . . . . . . . . . . . . . . . . 71 Shots Hit Robots 876 | 27 39 8 5 65 72 . 19 . 20 . 46 37 38 . 3 29 11 . 9 73 15 60 6 24 . 9 60 201 Core Hits 298 | 7 18 5 3 21 23 . 11 . 8 . 28 10 18 . 1 4 2 . 1 28 2 7 2 3 . 4 14 78 Critical Kills 8 | 1 . . . . . . . . . . . . 1 . . . . . . 3 . . . . . . 1 2 Critical Parts Destroyed 3 | . . . 1 1 . . . . . . . . 1 . . . . . . . . . . . . . . . Critical Strikes 12 | 1 . . 1 1 . . . . . . . . 2 . . . . . . 3 . . . . . . 1 3 Burn 1 | . . . . . . . . . . . . . . . . . . . . . . . . . . . . 1 Meltdown 7 | . . . . . . . . . . . . . 1 . . . . . . 3 . . . . . . 1 2 Destroy 4 | 1 . . 1 1 . . . . . . . . 1 . . . . . . . . . . . . . . . Melee Attacks 11 | . . . . . . . . . . . . . . . . . . . . . . . . . . . . 11 Thermal 1 | . . . . . . . . . . . . . . . . . . . . . . . . . . . . 1 Impact 9 | . . . . . . . . . . . . . . . . . . . . . . . . . . . . 9 Slashing . | . . . . . . . . . . . . . . . . . . . . . . . . . . . . . Piercing . | . . . . . . . . . . . . . . . . . . . . . . . . . . . . . Sneak Attacks 5 | . . . . . . . . . . . . . . . . . . . . . . . . . . . . 5 Combat Hostiles . | . . . . . . . . . . . . . . . . . . . . . . . . . . . . . Follow-up Attacks . | . . . . . . . . . . . . . . . . . . . . . . . . . . . . . Damage Inflicted 22308 | 250 534 124 75 1034 808 . 618 . 313 . 657 618 953 . 109 448 164 . 165 2297 190 1306 213 682 . 186 2197 8367 Guns 5152 | 250 518 119 75 1034 808 . 294 . 313 . 657 507 156 . . . . . . . . . . . . . . 421 Cannons 14889 | . . . . . . . . . . . . 111 797 . 109 448 164 . 165 1245 190 1306 213 682 . 186 2197 7076 Explosions 1948 | . . . . . . . 324 . . . . . . . . . . . . 1052 . . . . . . . 572 Melee 195 | . . . . . . . . . . . . . . . . . . . . . . . . . . . . 195 Ramming 124 | . 16 5 . . . . . . . . . . . . . . . . . . . . . . . . . 103 Kinetic 4517 | 250 304 119 75 1034 808 . 294 . 313 . 657 507 156 . . . . . . . . . . . . . . . Thermal 15397 | . 214 . . . . . . . . . . 111 797 . 109 448 164 . 165 1345 190 1306 213 682 . 186 2197 7270 Explosive 896 | . . . . . . . 324 . . . . . . . . . . . . . . . . . . . . 572 Electromagnetic 1179 | . . . . . . . . . . . . . . . . . . . . 952 . . . . . . . 227 Impact 195 | . . . . . . . . . . . . . . . . . . . . . . . . . . . . 195 Slashing . | . . . . . . . . . . . . . . . . . . . . . . . . . . . . . Piercing . | . . . . . . . . . . . . . . . . . . . . . . . . . . . . . Highest Corruption 7 | . 1 1 . . . . . . . . . . . . . 1 1 1 1 4 4 4 . . . 4 5 7 Average Corruption 3 | . 1 1 . . . . . . . . . . . . . 1 1 1 1 2 4 4 . . . 3 4 4 Corruption Purged 19 | . . . . . . . . . . . . . . . . . . . . . . . . . . . 7 12 Effects 395 | . 1 6 . . . . . . . . . . . . . 2 1 3 3 16 9 34 . . . 27 50 243 Message Errors 102 | . 1 3 . . . . . . . . . . . . . . . 2 . 2 3 12 . . . 7 9 63 Matter Fused 82 | . . . . . . . . . . . . . . . . . . . . 4 3 6 . . . 4 17 48 Heat Flow Errors 61 | . . . . . . . . . . . . . . . . . . . . 1 . 6 . . . 6 8 40 Energy Discharges 73 | . . 1 . . . . . . . . . . . . . 1 . . 2 9 3 7 . . . 7 4 39 Parts Rejected 3 | . . . . . . . . . . . . . . . . . . . . . . . . . . . . 3 Data Loss (minor) 52 | . . 2 . . . . . . . . . . . . . 1 1 1 . . . 3 . . . 3 7 34 Data Loss (major) 10 | . . . . . . . . . . . . . . . . . . . . . . . . . . . 2 8 Misfires 8 | . . . . . . . . . . . . . . . . . . . . . . . . . . . 2 6 Weapon Failures 4 | . . . . . . . . . . . . . . . . . . . 1 . . . . . . . 1 2 Overload Shots 1 | . . . . . . . . . . . . . . . . . . . . . . . . . . . 1 . Overflow Damage 785 | . . . . . . . 6 . . . . 23 25 . . 100 . . . 28 . 45 . 66 . . 16 476 Projectiles 776 | . . . . . . . . . . . . 23 25 . . 100 . . . 28 . 45 . 66 . . 16 473 Explosions 7 | . . . . . . . 6 . . . . . . . . . . . . . . . . . . . . 1 Melee 2 | . . . . . . . . . . . . . . . . . . . . . . . . . . . . 2 Knockbacks . | . . . . . . . . . . . . . . . . . . . . . . . . . . . . . Impact . | . . . . . . . . . . . . . . . . . . . . . . . . . . . . . Kinetic . | . . . . . . . . . . . . . . . . . . . . . . . . . . . . . Secondary . | . . . . . . . . . . . . . . . . . . . . . . . . . . . . . Self-Inflicted Damage 15 | . . . . . . . 15 . . . . . . . . . . . . . . . . . . . . . Shots 1 | . . . . . . . 1 . . . . . . . . . . . . . . . . . . . . . Rammed 33 | . . . . . . . . . . . . . . . . . . . . . . . . . . . . 33 Targets Rammed 38 | . 3 2 . . . . . . . . . . . . . . . . . . . . . . . . . 33 Kicked 5 | . 3 2 . . . . . . . . . . . . . . . . . . . . . . . . . . Crushed . | . . . . . . . . . . . . . . . . . . . . . . . . . . . . . Highest Temperature 381 | . 174 38 18 126 . . 24 . . . 4 42 152 . 269 156 264 381 216 230 22 254 . 44 . 224 213 248 Average Temperature 58 | . 46 14 9 32 . . 15 . . . 4 21 64 . 96 43 80 200 67 36 6 25 . 17 . 89 76 90 Received Heat Transfer 1174 | . 46 14 . 74 74 . 36 . 24 . 128 71 301 . 72 42 39 . 36 4 . 12 . 27 . . 9 165 Effects 6 | . . . . . . . . . . . . . . . . . . 1 . . . . . . . . 1 4 Shutdowns 1 | . . . . . . . . . . . . . . . . . . 1 . . . . . . . . . . Energy Bleed 1 | . . . . . . . . . . . . . . . . . . . . . . . . . . . . 1 Interference 4 | . . . . . . . . . . . . . . . . . . . . . . . . . . . 1 3 Siege Activations 1 | . . . . . . . . . . . . . . . . . . . . . . . . . . . . 1 Total Turns 21 | . . . . . . . . . . . . . . . . . . . . . . . . . . . . 21 Longest Duration 21 | . . . . . . . . . . . . . . . . . . . . . . . . . . . . 21 Robots Corrupted 1 | . . . . . . . . . . . . . . . . . . . . 1 . . . . . . . . Combat Hostiles 1 | . . . . . . . . . . . . . . . . . . . . 1 . . . . . . . . Parts Fried 6 | . . . . . . . . . . . . . . . . . . . . 3 . . . . . 1 1 1 Impact Corruptions 1 | . . . . . . . . . . . . . . . . . . . . . . . . . . . . 1 Robots Melted 8 | . . . . . . . . . . . . . 1 . . . . . . 3 . . . . . . 1 3 Combat Hostiles 5 | . . . . . . . . . . . . . 1 . . . . . . 1 . . . . . . . 3 Parts Melted 38 | . . . . . . . . . . . . 1 1 . . 1 . . . 3 . . . . . . 8 24 Heat Transferred 14684 | . 481 . . . . . . . . . . 148 1073 . 148 555 222 . 185 1579 259 543 222 619 . 166 1705 6779 Parts Sabotaged . | . . . . . . . . . . . . . . . . . . . . . . . . . . . . . Parts Stolen . | . . . . . . . . . . . . . . . . . . . . . . . . . . . . . Parts Stripped . | . . . . . . . . . . . . . . . . . . . . . . . . . . . . . Power Chain Reactions 1 | . . . . . . . . . . . . . . . . . . . . 1 . . . . . . . . Missiles Intercepted . | . . . . . . . . . . . . . . . . . . . . . . . . . . . . . Alert | -11 -10 -10 -9 -9 -9 -8 -8 -7 -7 -7 -7 -6 -6 -5 -5 -4 -4 -4 -4 -3 -3 -3 -2 -2 -1 -1 -1 -1 ------- Run | Scr Mat Min Mat Sto Gar Mat Gar Fac Gar Fac Gar Fac Gar Fac Gar Fac Gar Fac Gar Res Gar Arm Res Gar Acc Gar Acc Com Peak Influence 6501 | 25 290 100 179 684 1147 559 821 466 947 497 941 762 939 519 811 425 834 480 848 978 644 683 474 624 425 790 1233 6501 Initial 559 | . 16 100 . 30 438 559 363 430 326 497 340 493 438 492 258 425 243 437 336 477 84 338 358 355 374 340 461 307 Average 1628 | 18 157 42 76 323 897 559 584 435 707 494 635 425 752 467 525 242 668 438 593 375 436 415 391 482 398 642 626 3478 Maximum Alert Level 5 | . 1 . . 2 4 2 3 2 3 2 3 3 3 2 3 2 3 2 3 3 2 2 2 2 2 3 4 5 Low Security (%) 13 | 100 60 100 100 30 . . . . . . . 9 . . . 29 . . . 45 27 14 . . . . . . Level 1 15 | . 39 . . 28 . . 20 . 6 . 11 49 . 24 43 58 9 . 24 11 8 37 75 9 51 4 20 9 Level 2 26 | . . . . 41 20 100 67 100 25 100 48 28 23 75 39 12 24 100 34 20 63 47 24 90 48 68 45 8 Level 3 14 | . . . . . 59 . 11 . 67 . 40 12 76 . 16 . 64 . 41 22 . . . . . 27 28 6 Level 4 2 | . . . . . 19 . . . . . . . . . . . . . . . . . . . . . 5 3 Level 5 2 | . . . . . . . . . . . . . . . . . . . . . . . . . . . . 7 High Security 25 | . . . . . . . . . . . . . . . . . . . . . . . . . . . . 65 Max Security . | . . . . . . . . . . . . . . . . . . . . . . . . . . . . . Squads Dispatched 118 | . 5 . . 3 . . . 2 . . . 4 . . . 6 . 2 . 8 . 7 1 . . . 8 72 Investigation 9 | . 4 . . 1 . . . 1 . . . 1 . . . . . 1 . . . . . . . . . 1 Extermination 32 | . . . . . . . . . . . . 1 . . . 2 . 1 . 3 . 4 1 . . . 7 13 Reinforcement 38 | . 1 . . 1 . . . 1 . . . 2 . . . 4 . . . 4 . 3 . . . . . 22 Assault 38 | . . . . . . . . . . . . . . . . . . . . 1 . . . . . . 1 36 Garrison 1 | . . . . 1 . . . . . . . . . . . . . . . . . . . . . . . . Intercept . | . . . . . . . . . . . . . . . . . . . . . . . . . . . . . Construction Impeded . | . . . . . . . . . . . . . . . . . . . . . . . . . . . . . Haulers Reinforced 1 | . . . . . . . . . . . . . . . . . . . . 1 . . . . . . . . Active Scanning Responses . | . . . . . . . . . . . . . . . . . . . . . . . . . . . . . Cargo Convoy Interrupts 2 | . . . . . . . . . . . . 1 . . . . . . . 1 . . . . . . . . Stealth | -11 -10 -10 -9 -9 -9 -8 -8 -7 -7 -7 -7 -6 -6 -5 -5 -4 -4 -4 -4 -3 -3 -3 -2 -2 -1 -1 -1 -1 --------- Run | Scr Mat Min Mat Sto Gar Mat Gar Fac Gar Fac Gar Fac Gar Fac Gar Fac Gar Fac Gar Res Gar Arm Res Gar Acc Gar Acc Com Distress Signals 22 | . 2 3 1 4 . . . . . 1 . 1 . . . 1 . . . . . 1 . . . . . 8 Communications Jammed 146 | . . . . . . . . . . . . 3 . . . 20 . . . . . 84 . . . . 7 32 Distress Signals 145 | . . . . . . . . . . . . 3 . . . 20 . . . . . 84 . . . . 6 32 Times Spotted 780 | . 24 4 7 25 18 . 11 . 21 . 21 14 19 1 13 30 15 1 15 52 17 36 . 13 . 19 41 363 Peak Tracking Total 22 | . 3 1 4 5 4 . 6 . 2 . 4 3 8 1 3 5 4 2 3 11 3 4 . 3 . 9 3 22 Tactical Retreats 14 | . . . 2 2 1 . 1 . . . . . . . . . . . 1 1 . . . . . 1 . 5 Traps | -11 -10 -10 -9 -9 -9 -8 -8 -7 -7 -7 -7 -6 -6 -5 -5 -4 -4 -4 -4 -3 -3 -3 -2 -2 -1 -1 -1 -1 ------- Run | Scr Mat Min Mat Sto Gar Mat Gar Fac Gar Fac Gar Fac Gar Fac Gar Fac Gar Fac Gar Res Gar Arm Res Gar Acc Gar Acc Com Traps Triggered 47 | . 2 . . 1 3 . 2 . 3 . 4 . 5 3 3 1 3 . 3 . 4 1 . . . 3 4 2 Indirectly . | . . . . . . . . . . . . . . . . . . . . . . . . . . . . . Trap Hack Attempts . | . . . . . . . . . . . . . . . . . . . . . . . . . . . . . Triggered . | . . . . . . . . . . . . . . . . . . . . . . . . . . . . . Disarmed . | . . . . . . . . . . . . . . . . . . . . . . . . . . . . . Reprogrammed . | . . . . . . . . . . . . . . . . . . . . . . . . . . . . . Reused . | . . . . . . . . . . . . . . . . . . . . . . . . . . . . . Traps Extracted . | . . . . . . . . . . . . . . . . . . . . . . . . . . . . . Installed . | . . . . . . . . . . . . . . . . . . . . . . . . . . . . . Triggered 2 | . . . . . . . . . . . . 1 . . . . . . . . . 1 . . . . . . Machines | -11 -10 -10 -9 -9 -9 -8 -8 -7 -7 -7 -7 -6 -6 -5 -5 -4 -4 -4 -4 -3 -3 -3 -2 -2 -1 -1 -1 -1 ---------- Run | Scr Mat Min Mat Sto Gar Mat Gar Fac Gar Fac Gar Fac Gar Fac Gar Fac Gar Fac Gar Res Gar Arm Res Gar Acc Gar Acc Com Machines Disabled 70 | . 2 . . 5 1 . 3 . 2 . 1 4 3 . 2 4 3 . 4 6 3 8 . 4 . 3 2 10 Max in Single Turn 1 | . 1 . . 1 1 . 1 . 1 . 1 . 1 . 1 . 1 . 1 1 1 1 . 1 . 1 1 1 Garrison Access 1 | . . . . . . . . . . . . . . . . . . . . 1 . . . . . . . . Garrison Relay 21 | . . . . . 1 . 1 . 2 . 1 . 2 . 2 . 2 . 2 . 2 . . 3 . 3 . . Phase Generator 1 | . . . . . . . 1 . . . . . . . . . . . . . . . . . . . . . Machines Sabotaged . | . . . . . . . . . . . . . . . . . . . . . . . . . . . . . Garrisons Compromised 1 | . . . . . . . . . . . . 1 . . . . . . . . . . . . . . . . Overloaded Fab Kills . | . . . . . . . . . . . . . . . . . . . . . . . . . . . . . Fab Network Shutdowns . | . . . . . . . . . . . . . . . . . . . . . . . . . . . . . Hacking | -11 -10 -10 -9 -9 -9 -8 -8 -7 -7 -7 -7 -6 -6 -5 -5 -4 -4 -4 -4 -3 -3 -3 -2 -2 -1 -1 -1 -1 --------- Run | Scr Mat Min Mat Sto Gar Mat Gar Fac Gar Fac Gar Fac Gar Fac Gar Fac Gar Fac Gar Res Gar Arm Res Gar Acc Gar Acc Com Machines Accessed 56 | . 9 1 5 6 . 1 . 2 . 1 . 7 . 2 . 3 . 2 . 5 . 4 1 . 2 . . 5 Terminals 36 | . 6 1 4 5 . . . 1 . . . 5 . 1 . 1 . 1 . 2 . 3 . . 1 . . 5 Fabricators 3 | . . . . . . . . . . . . 1 . . . . . . . 1 . 1 . . . . . . Repair Stations 3 | . 1 . 1 . . . . . . . . . . . . 1 . . . . . . . . . . . . Recycling Units 2 | . 2 . . . . . . . . . . . . . . . . . . . . . . . . . . . Scanalyzers . | . . . . . . . . . . . . . . . . . . . . . . . . . . . . . Garrison Access 12 | . . . . 1 . 1 . 1 . 1 . 1 . 1 . 1 . 1 . 2 . . 1 . 1 . . . Total Hacks 131 | . 16 3 18 16 . 2 . 6 . 2 . 16 . 5 . 9 . 6 . 6 . 8 4 . 4 . . 10 Successful 65 | . 11 1 6 8 . 2 . 4 . 1 . 8 . 3 . 4 . 3 . 2 . 1 3 . 4 . . 4 Failed 65 | . 4 2 12 8 . . . 2 . 1 . 8 . 2 . 5 . 3 . 4 . 7 1 . . . . 6 Catastrophic 15 | . 2 1 . 1 . . . . . 1 . 3 . . . . . 1 . 2 . 1 1 . . . . 2 Database Lockouts 1 | . 1 . . . . . . . . . . . . . . . . . . . . . . . . . . . Manual 75 | . 10 3 11 9 . . . 4 . 1 . 12 . 3 . 2 . 1 . 2 . 3 2 . 2 . . 10 Terminals 86 | . 11 3 15 12 . . . 2 . . . 12 . 3 . 4 . 3 . 2 . 7 . . 2 . . 10 Fabricators 4 | . . . . . . . . . . . . 2 . . . . . . . 1 . 1 . . . . . . Repair Stations 8 | . 2 . 3 . . . . . . . . . . . . 3 . . . . . . . . . . . . Recycling Units 3 | . 3 . . . . . . . . . . . . . . . . . . . . . . . . . . . Scanalyzers . | . . . . . . . . . . . . . . . . . . . . . . . . . . . . . Garrison Access 30 | . . . . 4 . 2 . 4 . 2 . 2 . 2 . 2 . 3 . 3 . . 4 . 2 . . . Terminal Hacks 22 | . 6 1 3 4 . . . . . . . 5 . 1 . 1 . . . . . 1 . . . . . . Robot Schematic 1 | . . 1 . . . . . . . . . . . . . . . . . . . . . . . . . . Robot Analysis 2 | . 2 . . . . . . . . . . . . . . . . . . . . . . . . . . . Prototype ID Bank 5 | . 3 . 1 1 . . . . . . . . . . . . . . . . . . . . . . . . Open Door 1 | . . . . 1 . . . . . . . . . . . . . . . . . . . . . . . . Branch Access Points 1 | . . . 1 . . . . . . . . . . . . . . . . . . . . . . . . . Terminal Index 2 | . . . . 1 . . . . . . . 1 . . . . . . . . . . . . . . . . Alert Level 1 | . . . . 1 . . . . . . . . . . . . . . . . . . . . . . . . Unreport Threat 5 | . . . 1 . . . . . . . . 3 . 1 . . . . . . . . . . . . . . Locate Traps 1 | . . . . . . . . . . . . . . . . . . . . . . 1 . . . . . . Patrol Status 1 | . . . . . . . . . . . . 1 . . . . . . . . . . . . . . . . Hauler Manifests 1 | . 1 . . . . . . . . . . . . . . . . . . . . . . . . . . . Zone Layout 1 | . . . . . . . . . . . . . . . . 1 . . . . . . . . . . . . Fabricator Hacks . | . . . . . . . . . . . . . . . . . . . . . . . . . . . . . Repair Station Hacks 4 | . 2 . . . . . . . . . . . . . . 2 . . . . . . . . . . . . Scan Component 1 | . . . . . . . . . . . . . . . . 1 . . . . . . . . . . . . Repair 1 | . . . . . . . . . . . . . . . . 1 . . . . . . . . . . . . Refit 2 | . 2 . . . . . . . . . . . . . . . . . . . . . . . . . . . Recycling Unit Hacks 1 | . 1 . . . . . . . . . . . . . . . . . . . . . . . . . . . Report Inventory 1 | . 1 . . . . . . . . . . . . . . . . . . . . . . . . . . . Scanalyzer . | . . . . . . . . . . . . . . . . . . . . . . . . . . . . . Garrison Access Hacks 20 | . . . . 2 . 2 . 2 . 1 . 2 . 2 . 1 . 2 . 2 . . 2 . 2 . . . Unlock Access 11 | . . . . 1 . 1 . 1 . 1 . 1 . 1 . 1 . 1 . 1 . . 1 . 1 . . . Seal Access 1 | . . . . . . . . . . . . . . . . . . . . 1 . . . . . . . . Coupler Status 8 | . . . . 1 . 1 . 1 . . . 1 . 1 . . . 1 . . . . 1 . 1 . . . Unauthorized Hacks 18 | . 2 . 3 2 . . . 2 . . . 1 . . . . . 1 . . . . 1 . 2 . . 4 Terminals 12 | . . . 3 2 . . . 1 . . . . . . . . . . . . . . . . 2 . . 4 Assimilate 3 | . . . 1 . . . . . . . . . . . . . . . . . . . . . . . . 2 Botnet 3 | . . . . 1 . . . . . . . . . . . . . . . . . . . . 1 . . 1 Disrupt 1 | . . . 1 . . . . . . . . . . . . . . . . . . . . . . . . . Operators 5 | . . . 1 1 . . . 1 . . . . . . . . . . . . . . . . 1 . . 1 Fabricators 1 | . . . . . . . . . . . . 1 . . . . . . . . . . . . . . . . Haulers 1 | . . . . . . . . . . . . 1 . . . . . . . . . . . . . . . . Repair Stations . | . . . . . . . . . . . . . . . . . . . . . . . . . . . . . Recycling Units 2 | . 2 . . . . . . . . . . . . . . . . . . . . . . . . . . . Tunnel 2 | . 2 . . . . . . . . . . . . . . . . . . . . . . . . . . . Scanalyzers . | . . . . . . . . . . . . . . . . . . . . . . . . . . . . . Garrison Access 3 | . . . . . . . . 1 . . . . . . . . . 1 . . . . 1 . . . . . Reprogram 1 | . . . . . . . . . . . . . . . . . . . . . . . 1 . . . . . Eject 2 | . . . . . . . . 1 . . . . . . . . . 1 . . . . . . . . . . Data Cores Recovered 1 | . . . . . . . . . . . . 1 . . . . . . . . . . . . . . . . Used . | . . . . . . . . . . . . . . . . . . . . . . . . . . . . . Hacking Detections 49 | . 6 1 5 5 . 1 . 2 . 1 . 7 . 2 . 2 . 2 . 4 . 4 1 . 2 . . 4 Full Trace Events 2 | . . . . . . . . . . . . 1 . . . . . . . . . . . . . . . 1 Feedback Events 1 | . . . . . . . . . . . . . . . . . . . . . . . . . . . . 1 Corruption 1 | . . . . . . . . . . . . . . . . . . . . . . . . . . . . 1 Feedback Blocked . | . . . . . . . . . . . . . . . . . . . . . . . . . . . . . Robot Schematics Acquired 1 | . . 1 . . . . . . . . . . . . . . . . . . . . . . . . . . Robots Built . | . . . . . . . . . . . . . . . . . . . . . . . . . . . . . Matter . | . . . . . . . . . . . . . . . . . . . . . . . . . . . . . Time . | . . . . . . . . . . . . . . . . . . . . . . . . . . . . . Total Robot Build Rating . | . . . . . . . . . . . . . . . . . . . . . . . . . . . . . Part Schematics Acquired . | . . . . . . . . . . . . . . . . . . . . . . . . . . . . . Parts Built . | . . . . . . . . . . . . . . . . . . . . . . . . . . . . . Matter . | . . . . . . . . . . . . . . . . . . . . . . . . . . . . . Time . | . . . . . . . . . . . . . . . . . . . . . . . . . . . . . Total Part Build Rating . | . . . . . . . . . . . . . . . . . . . . . . . . . . . . . Parts Repaired 1 | . . . . . . . . . . . . . . . . 1 . . . . . . . . . . . . Time 44 | . . . . . . . . . . . . . . . . 44 . . . . . . . . . . . . Parts Recycled . | . . . . . . . . . . . . . . . . . . . . . . . . . . . . . Recycled Matter . | . . . . . . . . . . . . . . . . . . . . . . . . . . . . . Retrieved Matter . | . . . . . . . . . . . . . . . . . . . . . . . . . . . . . Retrieved Components . | . . . . . . . . . . . . . . . . . . . . . . . . . . . . . Parts Scanalyzed . | . . . . . . . . . . . . . . . . . . . . . . . . . . . . . Part Schematics Acquired . | . . . . . . . . . . . . . . . . . . . . . . . . . . . . . Parts Damaged . | . . . . . . . . . . . . . . . . . . . . . . . . . . . . . Bothacking | -11 -10 -10 -9 -9 -9 -8 -8 -7 -7 -7 -7 -6 -6 -5 -5 -4 -4 -4 -4 -3 -3 -3 -2 -2 -1 -1 -1 -1 ------------ Run | Scr Mat Min Mat Sto Gar Mat Gar Fac Gar Fac Gar Fac Gar Fac Gar Fac Gar Fac Gar Res Gar Arm Res Gar Acc Gar Acc Com Used RIF Installer 11 | . . . . . 1 . 1 . 1 . 1 . 1 . 1 . 1 . 1 . 1 . . 1 . 1 . . Hotswap 1 | . . . . . . . . . 1 . . . . . . . . . . . . . . . . . . . Command Fork 2 | . . . . . . . . . . . . . . . 1 . . . . . . . . . . 1 . . Signal Jammer 1 | . . . . . . . 1 . . . . . . . . . . . . . . . . . . . . . Watcher Feeds 1 | . . . . . . . . . . . . . . . . . . . 1 . . . . . . . . . Patrol Navigation 1 | . . . . . . . . . . . . . . . . . 1 . . . . . . . . . . . Autooverride 2 | . . . . . . . . . . . . . 1 . . . . . . . 1 . . . . . . . Autoassimilate 1 | . . . . . . . . . . . 1 . . . . . . . . . . . . . . . . . Crosswire 1 | . . . . . . . . . . . . . . . . . . . . . . . . 1 . . . . Robots Hacked 472 | . . . . . . . . . . . . . . . 6 24 9 . 9 29 23 20 . 14 . 28 27 283 Non-combat 17 | . . . . . . . . . . . . . . . . 6 . . . 6 . 2 . . . . 3 . Combat 455 | . . . . . . . . . . . . . . . 6 18 9 . 9 23 23 18 . 14 . 28 24 283 Autooverrided 168 | . . . . . . . . . . . . . . . 1 5 1 . 2 4 9 6 . 2 . 10 10 118 Autoassimilated 242 | . . . . . . . . . . . . . . . 5 11 4 . 4 9 8 4 . 7 . 16 14 160 Robot Hacks Applied 94 | . . . . . . . . . . . . . . . . 14 4 . 3 23 7 13 . 5 . 2 11 12 parse_system 1 | . . . . . . . . . . . . . . . . . . . . . . 1 . . . . . . generate_echo 2 | . . . . . . . . . . . . . . . . . . . . 1 . . . . . . 1 . map_walls 1 | . . . . . . . . . . . . . . . . . . . . 1 . . . . . . . . drop_inventory 6 | . . . . . . . . . . . . . . . . 3 . . . 2 . . . . . . 1 . purge_threat 22 | . . . . . . . . . . . . . . . . 5 . . . 8 . 3 . . . . 6 . summon_haulers 1 | . . . . . . . . . . . . . . . . . . . . . . . . . . . 1 . map_route 1 | . . . . . . . . . . . . . . . . 1 . . . . . . . . . . . . find_garrison 2 | . . . . . . . . . . . . . . . . 1 . . . 1 . . . . . . . . scatter_targeting 1 | . . . . . . . . . . . . . . . . . . . . . 1 . . . . . . . wipe_record 2 | . . . . . . . . . . . . . . . . . . . . 1 . . . . . . . 1 reboot_system 2 | . . . . . . . . . . . . . . . . . . . . . . 1 . . . . . 1 overwrite_iff 20 | . . . . . . . . . . . . . . . . . 2 . 1 6 5 1 . 2 . . 1 2 streamctrl_high 1 | . . . . . . . . . . . . . . . . . . . . . . . . . . . 1 . formatsys_low 3 | . . . . . . . . . . . . . . . . 2 . . . . . 1 . . . . . . formatsys_high 29 | . . . . . . . . . . . . . . . . 2 2 . 2 3 1 6 . 3 . 2 . 8 Relay Couplers Released 94 | . . . . . 3 . 4 3 8 . 4 . 10 . 7 . 8 4 8 . 7 . . 13 . 12 3 . Ejected 7 | . . . . . . . . 3 . . . . . . . . . 4 . . . . . . . . . . Machine Destruction 84 | . . . . . 3 . 4 . 8 . 4 . 10 . 7 . 8 . 8 . 7 . . 13 . 12 . . Programmers 3 | . . . . . . . . . . . . . . . . . . . . . . . . . . . 3 . Attached 66 | . . . . . . . . 4 . . 2 2 2 2 2 4 5 1 1 7 3 3 1 7 2 7 2 9 Crosswired 21 | . . . . . . . . . . . . . . . . . . . . . . . . 16 . 4 1 . Robots Rewired 4 | . . . . . . . . . . . . . . . . . . . . . . 4 . . . . . . Allies Hacked 21 | . . . . . . . . . . . . . . . . . . . 1 1 . 3 . . . . 4 12 Hacks Repelled . | . . . . . . . . . . . . . . . . . . . . . . . . . . . . . Allies | -11 -10 -10 -9 -9 -9 -8 -8 -7 -7 -7 -7 -6 -6 -5 -5 -4 -4 -4 -4 -3 -3 -3 -2 -2 -1 -1 -1 -1 -------- Run | Scr Mat Min Mat Sto Gar Mat Gar Fac Gar Fac Gar Fac Gar Fac Gar Fac Gar Fac Gar Res Gar Arm Res Gar Acc Gar Acc Com Total Allies 472 | . 1 . 1 . . . . . . . . . . . 6 23 9 . 10 22 24 23 3 14 . 28 25 283 Largest Group 44 | . 1 1 2 1 1 1 1 1 1 1 1 1 1 1 5 12 9 2 4 4 9 8 4 7 2 9 7 44 Highest-Rated Group 2086 | . 59 59 70 64 66 68 73 87 91 88 89 115 115 115 213 609 562 172 360 367 588 568 453 533 255 489 573 2086 Highest-Rated Ally 233 | . 59 59 61 64 66 68 73 87 91 88 89 115 115 115 121 149 156 160 162 191 191 198 201 202 197 210 226 233 Total Orders 76 | . . . . . 1 1 4 3 5 2 6 5 . . . . 1 . . . 2 3 . 1 . 3 2 37 STAY 23 | . . . . . . . . . . . . . . . . . . . . . . . . . . . 1 22 ROAM 11 | . . . . . . . . . . . . . . . . . 1 . . . 1 2 . 1 . 3 1 2 FOLLOW 16 | . . . . . . . . . . 1 . . . . . . . . . . 1 1 . . . . . 13 EXPLORE 18 | . . . . . 1 . 2 2 5 . 4 4 . . . . . . . . . . . . . . . . RETURN 8 | . . . . . . 1 2 1 . 1 2 1 . . . . . . . . . . . . . . . . Ally Attacks 2286 | . 41 1 3 32 9 . 17 . 23 2 24 27 23 1 49 104 61 4 52 131 113 157 . 90 . 107 147 1068 Total Damage 117480 | . 741 18 76 1560 1007 . 718 . 1167 67 1061 1812 1564 112 1625 4850 2072 206 2476 8955 4503 7991 . 3929 . 5152 10393 55425 Kills 654 | . 14 1 2 21 7 . 9 . 17 . 15 14 11 1 18 25 23 1 16 48 20 35 . 13 . 21 56 266 Allies Corrupted 19 | . . . . . . . . . . . . . . . . . . . . 2 . 3 . . . 1 . 13 Allies Melted 4 | . . . . . . . . . . . . . . . 1 . . . . 2 . . . . . . 1 . Intel | -11 -10 -10 -9 -9 -9 -8 -8 -7 -7 -7 -7 -6 -6 -5 -5 -4 -4 -4 -4 -3 -3 -3 -2 -2 -1 -1 -1 -1 ------- Run | Scr Mat Min Mat Sto Gar Mat Gar Fac Gar Fac Gar Fac Gar Fac Gar Fac Gar Fac Gar Res Gar Arm Res Gar Acc Gar Acc Com Robot Analysis Total 2 | . 2 . . . . . . . . . . . . . . . . . . . . . . . . . . . Derelict Logs Recovered 1 | . . 1 . . . . . . . . . . . . . . . . . . . . . . . . . . Drone Launches 48 | . . . . . 2 1 6 11 15 . 7 6 . . . . . . . . . . . . . . . . Drone Recoveries 35 | . . . . . 1 1 6 7 9 . 7 4 . . . . . . . . . . . . . . . . Exploration | -11 -10 -10 -9 -9 -9 -8 -8 -7 -7 -7 -7 -6 -6 -5 -5 -4 -4 -4 -4 -3 -3 -3 -2 -2 -1 -1 -1 -1 ------------- Run | Scr Mat Min Mat Sto Gar Mat Gar Fac Gar Fac Gar Fac Gar Fac Gar Fac Gar Fac Gar Res Gar Arm Res Gar Acc Gar Acc Com Turns Passed 38300 | 254 1768 1106 349 560 577 57 601 247 691 29 689 855 923 150 535 1131 629 320 722 2751 604 1597 333 1729 215 1650 2381 14847 Spaces Moved 17261 | 118 1068 566 258 309 276 32 202 169 431 19 379 467 446 93 254 626 291 188 305 1462 315 711 162 705 118 699 1229 5363 Core 9 | 9 . . . . . . . . . . . . . . . . . . . . . . . . . . . . Treads 185 | 89 . . . . . . . . . . . . . . . . . . . . . . . . . . . 96 Legs 1839 | 20 1068 566 185 . . . . . . . . . . . . . . . . . . . . . . . . . Wheels 15228 | . . . 73 309 276 32 202 169 431 19 379 467 446 93 254 626 291 188 305 1462 315 711 162 705 118 699 1229 5267 Hover . | . . . . . . . . . . . . . . . . . . . . . . . . . . . . . Flight . | . . . . . . . . . . . . . . . . . . . . . . . . . . . . . Fastest Speed 50 | 50 120 120 105 95 105 105 120 115 115 115 115 115 115 145 145 145 145 145 145 136 150 150 190 150 170 170 130 130 Average Speed 145 | 146 120 120 115 107 108 105 120 116 115 115 115 115 142 145 145 145 145 145 145 147 150 155 190 164 170 170 159 156 Slowest Speed 560 | 200 120 120 120 135 110 120 120 130 115 115 115 115 145 145 145 145 145 145 145 245 150 190 190 190 170 170 170 560 Overloaded Moves . | . . . . . . . . . . . . . . . . . . . . . . . . . . . . . Propulsion Burnouts . | . . . . . . . . . . . . . . . . . . . . . . . . . . . . . Robots Hopped . | . . . . . . . . . . . . . . . . . . . . . . . . . . . . . Cave-ins Triggered . | . . . . . . . . . . . . . . . . . . . . . . . . . . . . . Exploration Rate (%) 38 | 6 93 94 21 61 47 10 47 11 74 2 60 15 48 2 42 20 49 5 40 37 49 49 3 57 5 70 39 56 Regions Visited 28 Branch Regions 4 Pre-discovered Areas 2 | . 2 . . . . . . . . . . . . . . . . . . . . . . . . . . . Known Exits Taken 12 | . . . 1 1 . 1 . 1 . 1 . 1 . 1 . 1 . 1 . 1 . . 1 . 1 . . . Unknown Exits Taken 5 | 1 1 1 . . . . . . . . . . . . . . . . . . . 1 . . . . 1 . Scrap Searched 1 | . . 1 . . . . . . . . . . . . . . . . . . . . . . . . . . Spaces Dug 42 | . 3 . . . . . . . . . . . . . . . . . . . . . 2 . . . 2 35 Terrain Destroyed 204 | . 6 . . . . . 6 . . . . . . . . 1 . . . 3 . 11 4 4 . . 19 150 Melee 3 | . . . . . . . . . . . . . . . . . . . . . . . . . . . . 3 Projectile 175 | . 6 . . . . . . . . . . . . . . 1 . . . . . 11 4 4 . . 19 130 AOE 26 | . . . . . . . 6 . . . . . . . . . . . . 3 . . . . . . . 17 Terrain Rammed . | . . . . . . . . . . . . . . . . . . . . . . . . . . . . . Walls Destroyed . | . . . . . . . . . . . . . . . . . . . . . . . . . . . . . Machines Disabled . | . . . . . . . . . . . . . . . . . . . . . . . . . . . . . Actions | -11 -10 -10 -9 -9 -9 -8 -8 -7 -7 -7 -7 -6 -6 -5 -5 -4 -4 -4 -4 -3 -3 -3 -2 -2 -1 -1 -1 -1 --------- Run | Scr Mat Min Mat Sto Gar Mat Gar Fac Gar Fac Gar Fac Gar Fac Gar Fac Gar Fac Gar Res Gar Arm Res Gar Acc Gar Acc Com Total 29001 | 158 1486 979 301 458 471 55 519 223 594 26 571 742 674 105 406 825 486 237 565 1983 439 1134 179 1245 133 1146 1549 11312 Wait 9508 | . 309 404 24 55 120 20 274 27 91 7 113 228 123 5 103 120 137 39 198 340 49 258 8 468 11 381 210 5386 Move 17234 | 117 1067 565 257 308 275 31 200 168 430 19 378 467 445 92 253 625 290 187 304 1461 314 710 161 704 117 698 1228 5363 Hop . | . . . . . . . . . . . . . . . . . . . . . . . . . . . . . Pick Up 232 | 4 9 . 3 16 3 1 3 6 12 . 3 4 17 . 7 12 7 1 9 17 9 12 2 17 3 7 13 35 Fast Attach 108 | 10 8 . 1 8 1 . . 1 . . 3 3 4 6 . 2 1 2 1 10 . 13 . 5 . 4 5 20 Attach 118 | . 3 . 5 2 1 2 . 6 5 . 2 4 4 2 5 7 4 2 2 13 1 6 1 5 2 4 3 27 Detach 61 | 3 4 . 2 3 1 . . 4 . . . 1 3 . . 1 2 3 . 2 . 6 . 5 . . 2 19 Swap 157 | 2 12 . 3 6 1 . 4 3 . . 1 2 5 . 2 15 6 . 6 17 2 10 . 5 . 6 14 35 Drop 216 | 1 26 . 2 16 4 1 . 8 11 . 5 6 3 . 4 9 4 3 7 15 3 17 2 14 . 8 13 34 Fire 955 | 21 45 8 4 44 41 . 22 . 21 . 34 27 31 . 8 25 11 . 14 108 23 56 5 22 . 14 61 310 Melee 11 | . . . . . . . . . . . . . . . . . . . . . . . . . . . . 11 Ram . | . . . . . . . . . . . . . . . . . . . . . . . . . . . . . Kick 5 | . 3 2 . . . . . . . . . . . . . . . . . . . . . . . . . . Crush 33 | . . . . . . . . . . . . . . . . . . . . . . . . . . . . 33 Escape Stasis 315 | . . . . . 24 . 16 . 24 . 32 . 39 . 24 8 24 . 24 . 38 . . . . 24 . 38 Rewire 48 | . . . . . . . . . . . . . . . . 1 . . . . . 46 . . . . . 1 Trap . | . . . . . . . . . . . . . . . . . . . . . . . . . . . . . Miscellaneous . | . . . . . . . . . . . . . . . . . . . . . . . . . . . . . Route ------- -11/Scrapyard -10/Materials (discovered 4 exits: *Mat x3 / *Min) -10/Mines (discovered 2 exits: *Mat x2) -9/Materials (discovered 3 exits: Min / *Sto x2) -9/Storage -9/Garrison (discovered 2 exits: *Mat x2) -8/Materials -8/Garrison -7/Factory -7/Garrison (discovered 3 exits: *Fac x3) -7/Factory -7/Garrison (discovered 3 exits: *Fac x3) -6/Factory (discovered 2 exits: *Fac / Gar) -6/Garrison (discovered 2 exits: *Fac x2) -5/Factory -5/Garrison -4/Factory (discovered 2 exits: *Res / Gar) -4/Garrison (discovered 2 exits: *Fac x2) -4/Factory -4/Garrison -3/Research (discovered 5 exits: *Res / *Arm / [*Tes x2] / Gar) -3/Garrison -3/Armory -2/Research -2/Garrison (discovered 2 exits: *Acc x2) -1/Access -1/Garrison (discovered 3 exits: [*Acc x3]) -1/Access -1/Command History --------- Turn | Location | Event 16 | -11/Scrapyard | Discovered new exit (range 14) 255 | -11/Scrapyard | Entered Materials 309 | -10/Materials | Build established: Mutant 693 | -10/Materials | Discovered new exit (range 5) 720 | -10/Materials | Discovered new exit (range 16) 1241 | -10/Materials | Discovered new exit (range 15) 1335 | -10/Materials | Discovered new exit (range 7) 1432 | -10/Materials | Central database locked down 2023 | -10/Materials | Entered Mines 2023 | -10/Mines | Accompanied by 1 ally 2052 | -10/Mines | Learned 2 Materials zone layouts 2159 | -10/Mines | Assembled infested the area 3048 | -10/Mines | Discovered new exit (range 8) 3119 | -10/Mines | Discovered new exit (range 14) 3129 | -10/Mines | Entered Materials 3129 | -9/Materials | Accompanied by 1 ally 3129 | -9/Materials | Evolved 2 slots: Utility x2 3381 | -9/Materials | Identified exit to Mines 3381 | -9/Materials | Identified exit to Storage 3478 | -9/Materials | Entered Storage 3478 | -9/Storage | Accompanied by 1 ally 3936 | -9/Storage | Garrison activated, responded to threat 4005 | -9/Storage | Identified exit to Garrison 4038 | -9/Storage | Entered Garrison 4038 | -9/Garrison | Accompanied by 1 ally 4086 | -9/Garrison | Triggered checkpoint 4086 | -9/Garrison | Triggered checkpoint 4154 | -9/Garrison | Triggered checkpoint 4227 | -9/Garrison | Discovered new exit (range 15) 4247 | -9/Garrison | Identified exit to Materials 4252 | -9/Garrison | Triggered checkpoint 4307 | -9/Garrison | Garrison Relay disabled 4308 | -9/Garrison | Triggered checkpoint 4548 | -9/Garrison | Discovered exit to Materials (range 12) 4565 | -9/Garrison | Installed Relay Interface Framework 4615 | -9/Garrison | Entered Materials 4615 | -8/Materials | Accompanied by 1 ally 4615 | -8/Materials | Evolved 2 slots: Utility x2 4656 | -8/Materials | Identified exit to Garrison 4672 | -8/Materials | Entered Garrison 4672 | -8/Garrison | Accompanied by 1 ally 4678 | -8/Garrison | Expanded RIF knowledge: Signal Jamming 4784 | -8/Garrison | Triggered checkpoint 4810 | -8/Garrison | Triggered checkpoint 4935 | -8/Garrison | Discovered new exit (range 9) 4988 | -8/Garrison | Triggered checkpoint 5039 | -8/Garrison | Garrison Relay disabled 5272 | -8/Garrison | Phase Generator disabled 5273 | -8/Garrison | Entered Factory 5273 | -7/Factory | Accompanied by 1 ally 5273 | -7/Factory | Evolved 2 slots: Utility x2 5509 | -7/Factory | Identified exit to Garrison 5520 | -7/Factory | Entered Garrison 5520 | -7/Garrison | Accompanied by 4 allies 5558 | -7/Garrison | Triggered checkpoint 5592 | -7/Garrison | Triggered checkpoint 5592 | -7/Garrison | Triggered checkpoint 5609 | -7/Garrison | Garrison Relay disabled 5819 | -7/Garrison | Discovered new exit (range 14) 5882 | -7/Garrison | Triggered checkpoint 5924 | -7/Garrison | Discovered new exit (range 12) 6018 | -7/Garrison | Triggered checkpoint 6072 | -7/Garrison | Triggered checkpoint 6104 | -7/Garrison | Garrison Relay disabled 6173 | -7/Garrison | Discovered new exit (range 14) 6199 | -7/Garrison | Expanded RIF knowledge: Hotswap 6211 | -7/Garrison | Entered Factory 6211 | -7/Factory | Accompanied by 3 allies 6233 | -7/Factory | Identified exit to Garrison 6240 | -7/Factory | Entered Garrison 6240 | -7/Garrison | Accompanied by 3 allies 6298 | -7/Garrison | Triggered checkpoint 6397 | -7/Garrison | Discovered new exit (range 8) 6484 | -7/Garrison | Triggered checkpoint 6500 | -7/Garrison | Triggered checkpoint 6538 | -7/Garrison | Triggered checkpoint 6587 | -7/Garrison | Discovered new exit (range 8) 6636 | -7/Garrison | Triggered checkpoint 6698 | -7/Garrison | Garrison Relay disabled 6888 | -7/Garrison | Discovered new exit (range 8) 6914 | -7/Garrison | Expanded RIF knowledge: Autoassimilate 6929 | -7/Garrison | Entered Factory 6929 | -6/Factory | Accompanied by 1 ally 6929 | -6/Factory | Evolved 2 slots: Utility x2 7045 | -6/Factory | Discovered new exit (range 22) 7622 | -6/Factory | Cargo convoy interrupted 7774 | -6/Factory | Identified exit to Garrison 7784 | -6/Factory | Entered Garrison 7784 | -6/Garrison | Accompanied by 1 ally 7828 | -6/Garrison | Triggered checkpoint 7866 | -6/Garrison | Garrison Relay disabled 7956 | -6/Garrison | Triggered checkpoint 8027 | -6/Garrison | Lost 3 parts (3u) 8028 | -6/Garrison | Destroyed 7 combat bots 8108 | -6/Garrison | Core integrity fell below 50% 8310 | -6/Garrison | Build established: Scavenger-Mutant 8323 | -6/Garrison | Discovered new exit (range 15) 8482 | -6/Garrison | Discovered new exit (range 14) 8511 | -6/Garrison | Expanded RIF knowledge: Autooverride 8560 | -6/Garrison | Triggered checkpoint 8612 | -6/Garrison | Garrison Relay disabled 8707 | -6/Garrison | Entered Factory 8707 | -5/Factory | Accompanied by 1 ally 8707 | -5/Factory | Evolved 2 slots: Utility x2 8766 | -5/Factory | Identified exit to Garrison 8857 | -5/Factory | Entered Garrison 8857 | -5/Garrison | Accompanied by 1 ally 8865 | -5/Garrison | Expanded RIF knowledge: Command Fork 8922 | -5/Garrison | Triggered checkpoint 8972 | -5/Garrison | Garrison Relay disabled 9054 | -5/Garrison | Triggered checkpoint 9056 | -5/Garrison | Triggered checkpoint 9087 | -5/Garrison | Triggered checkpoint 9182 | -5/Garrison | Triggered checkpoint 9235 | -5/Garrison | Build established: Mutant 9235 | -5/Garrison | Discovered new exit (range 12) 9302 | -5/Garrison | Triggered checkpoint 9328 | -5/Garrison | Garrison Relay disabled 9392 | -5/Garrison | Entered Factory 9392 | -4/Factory | Accompanied by 3 allies 9392 | -4/Factory | Evolved 2 slots: Utility x2 9599 | -4/Factory | Spotted B-86 Titan 9622 | -4/Factory | Found Tesla Bomb Launcher 9625 | -4/Factory | Found Tesla Bomb Launcher 9629 | -4/Factory | Found Tesla Bomb Launcher 9633 | -4/Factory | Found Tesla Bomb Launcher 9746 | -4/Factory | Repaired Arm. Huge Wheel 9809 | -4/Factory | Build established: Botlord-Mutant 10434 | -4/Factory | Discovered new exit (range 5) 10507 | -4/Factory | Identified exit to Garrison 10523 | -4/Factory | Entered Garrison 10523 | -4/Garrison | Accompanied by 9 allies 10568 | -4/Garrison | Triggered checkpoint 10576 | -4/Garrison | Spotted B-86 Titan 10580 | -4/Garrison | Triggered checkpoint 10591 | -4/Garrison | Triggered checkpoint 10604 | -4/Garrison | Allies destroyed B-86 Titan 10604 | -4/Garrison | Triggered checkpoint 10656 | -4/Garrison | Triggered checkpoint 10660 | -4/Garrison | Triggered checkpoint 10745 | -4/Garrison | Garrison Relay disabled 10790 | -4/Garrison | Discovered new exit (range 8) 10914 | -4/Garrison | Discovered new exit (range 9) 10938 | -4/Garrison | Expanded RIF knowledge: Patrol Navigation 11026 | -4/Garrison | Triggered checkpoint 11090 | -4/Garrison | Garrison Relay disabled 11152 | -4/Garrison | Entered Factory 11152 | -4/Factory | Accompanied by 2 allies 11308 | -4/Factory | Found Prototype Processor 11308 | -4/Factory | Identified Exp. Melee Analysis Suite 11469 | -4/Factory | Identified exit to Garrison 11472 | -4/Factory | Entered Garrison 11472 | -4/Garrison | Accompanied by 2 allies 11516 | -4/Garrison | Triggered checkpoint 11558 | -4/Garrison | Garrison Relay disabled 11650 | -4/Garrison | Triggered checkpoint 11843 | -4/Garrison | Spotted B-86 Titan 11860 | -4/Garrison | Triggered checkpoint 11898 | -4/Garrison | Triggered checkpoint 11986 | -4/Garrison | Discovered new exit (range 12) 12016 | -4/Garrison | Expanded RIF knowledge: Watcher Feeds 12056 | -4/Garrison | Triggered checkpoint 12095 | -4/Garrison | Garrison Relay disabled 12194 | -4/Garrison | Entered Research 12194 | -3/Research | Accompanied by 1 ally 12194 | -3/Research | Evolved 2 slots: Utility x2 12214 | -3/Research | Found Antimissile System 12380 | -3/Research | Discovered new exit (range 15) 12444 | -3/Research | First assault squad dispatched 12490 | -3/Research | Discovered new exit (range 13) 14125 | -3/Research | Spotted B-86 Titan 14136 | -3/Research | Allies destroyed B-86 Titan 14151 | -3/Research | Cargo convoy interrupted 14153 | -3/Research | Spotted Executioner 14154 | -3/Research | P-80 Master assimilated allied H-77 Assassin 14199 | -3/Research | Allies destroyed Executioner 14218 | -3/Research | Lost 7 parts (1n4u2w) 14219 | -3/Research | Found Prototype Processor 14219 | -3/Research | Identified Exp. Targeting Computer 14298 | -3/Research | Core integrity fell below 50% 14726 | -3/Research | Found Gamma Bomb Array 14808 | -3/Research | Discovered new exit (range 15) 14883 | -3/Research | Discovered new exit (range 8) 14935 | -3/Research | Identified exit to Garrison 14945 | -3/Research | Entered Garrison 14945 | -3/Garrison | Accompanied by 3 allies 14953 | -3/Garrison | Expanded RIF knowledge: Autooverride 15014 | -3/Garrison | Triggered checkpoint 15026 | -3/Garrison | Garrison Relay disabled 15090 | -3/Garrison | Triggered checkpoint 15091 | -3/Garrison | Triggered checkpoint 15107 | -3/Garrison | Spotted B-86 Titan 15136 | -3/Garrison | Triggered checkpoint 15146 | -3/Garrison | Allies destroyed B-86 Titan 15154 | -3/Garrison | Triggered checkpoint 15257 | -3/Garrison | Discovered new exit (range 17) 15312 | -3/Garrison | Triggered checkpoint 15390 | -3/Garrison | Garrison Relay disabled 15549 | -3/Garrison | Entered Armory 15549 | -3/Armory | Accompanied by 4 allies 15728 | -3/Armory | Spotted B-86 Titan 15752 | -3/Armory | Allies destroyed B-86 Titan 16105 | -3/Armory | Found Gamma Bomb Array 16506 | -3/Armory | Discovered new exit (range 21) 16514 | -3/Armory | P-80 Master assimilated allied Assassin 8h 16653 | -3/Armory | Found Prototype Protection 16653 | -3/Armory | Identified Centrium Heavy Armor Plating 16657 | -3/Armory | Found Centrium Heavy Armor Plating 16663 | -3/Armory | Found Centrium Heavy Armor Plating 16667 | -3/Armory | Found Prototype Device 16667 | -3/Armory | Identified Exp. Focal Shield 16673 | -3/Armory | Found Exp. Focal Shield 16686 | -3/Armory | Found Prototype Device 16686 | -3/Armory | Identified Exp. Thermal Shield 16710 | -3/Armory | Core integrity fell below 20% 16814 | -3/Armory | P-80 Master assimilated allied Rainmaker 8b 17146 | -3/Armory | Entered Research 17146 | -2/Research | Accompanied by 1 ally 17146 | -2/Research | Evolved 2 slots: Utility x2 17238 | -2/Research | Found Antimissile System 17275 | -2/Research | Identified exit to Garrison 17479 | -2/Research | Entered Garrison 17479 | -2/Garrison | Accompanied by 4 allies 17489 | -2/Garrison | Expanded RIF knowledge: Crosswire 17536 | -2/Garrison | Triggered checkpoint 17567 | -2/Garrison | Garrison Relay disabled 17826 | -2/Garrison | Triggered checkpoint 17829 | -2/Garrison | Spotted B-90 Cyclops 17831 | -2/Garrison | Triggered checkpoint 17843 | -2/Garrison | Triggered checkpoint 17854 | -2/Garrison | Triggered checkpoint 17887 | -2/Garrison | Allies destroyed B-90 Cyclops 18241 | -2/Garrison | Discovered new exit (range 13) 18310 | -2/Garrison | Triggered checkpoint 18342 | -2/Garrison | Garrison Relay disabled 18426 | -2/Garrison | Triggered checkpoint 18879 | -2/Garrison | Discovered new exit (range 8) 18954 | -2/Garrison | Triggered checkpoint 18994 | -2/Garrison | Garrison Relay disabled 19127 | -2/Garrison | Spotted B-90 Cyclops 19208 | -2/Garrison | Entered Access 19208 | -1/Access | Accompanied by 2 allies 19208 | -1/Access | Evolved 2 slots: Utility x2 19422 | -1/Access | Identified exit to Garrison 19423 | -1/Access | Entered Garrison 19423 | -1/Garrison | Accompanied by 2 allies 19480 | -1/Garrison | Triggered checkpoint 19534 | -1/Garrison | Triggered checkpoint 19570 | -1/Garrison | Triggered checkpoint 19577 | -1/Garrison | Spotted B-99 Colossus 19579 | -1/Garrison | Triggered checkpoint 19596 | -1/Garrison | Allies destroyed B-99 Colossus 19702 | -1/Garrison | Triggered checkpoint 20059 | -1/Garrison | Discovered new exit (range 8) 20139 | -1/Garrison | Garrison Relay disabled 20303 | -1/Garrison | Discovered new exit (range 9) 20460 | -1/Garrison | Discovered new exit (range 10) 20489 | -1/Garrison | Expanded RIF knowledge: Command Fork 20660 | -1/Garrison | Triggered checkpoint 20688 | -1/Garrison | Garrison Relay disabled 20890 | -1/Garrison | Garrison Relay disabled 20956 | -1/Garrison | Triggered checkpoint 21073 | -1/Garrison | Entered Access 21073 | -1/Access | Accompanied by 1 ally 21416 | -1/Access | P-80 Master assimilated allied Enforcer 10g 22278 | -1/Access | P-80 Master assimilated allied Champion 10b 22362 | -1/Access | Spotted B-99 Colossus 22367 | -1/Access | Hijacked Colossus 10a control node with streamctrl_high 22437 | -1/Access | Destroyed Colossus 10a 22442 | -1/Access | Found Prototype Ballistic Gun 22448 | -1/Access | Found Corrupted Prototype Ballistic Gun 22617 | -1/Access | Identified Multirail 22775 | -1/Access | Found Centrium Heavy Armor Plating 23006 | -1/Access | Found Quantum Capacitor 23168 | -1/Access | Found Prototype Device 23168 | -1/Access | Identified System Purifier 23356 | -1/Access | First assault squad dispatched 23432 | -1/Access | Spotted B-99 Colossus 23432 | -1/Access | Spotted B-99 Colossus 23440 | -1/Access | Discovered new exit (range 3) 23454 | -1/Access | Entered Command 23454 | -1/Command | Accompanied by 1 ally 24772 | -1/Command | P-80 Master assimilated allied Warden 10a 24938 | -1/Command | Spotted B-99 Colossus 24954 | -1/Command | First assault squad dispatched 25613 | -1/Command | Found Hvy. Insulated Plating 27497 | -1/Command | Core integrity fell below 50% 28085 | -1/Command | P-80 Master assimilated allied L-61 Swordsman 28370 | -1/Command | P-80 Master assimilated allied Enforcer 10ar 28600 | -1/Command | High security lockdown imminent 28680 | -1/Command | High security lockdown engaged 28849 | -1/Command | Spotted Executioner 28849 | -1/Command | Spotted Striker 28852 | -1/Command | Spotted Executioner 28852 | -1/Command | Spotted Striker 28853 | -1/Command | P-80 Master assimilated allied Warden 10b 28858 | -1/Command | Allies destroyed Executioner 28859 | -1/Command | Destroyed Striker 28866 | -1/Command | Allies destroyed Striker 28867 | -1/Command | Allies destroyed Executioner 28966 | -1/Command | Spotted Striker 28967 | -1/Command | Spotted Investigator 28968 | -1/Command | P-80 Master assimilated allied Annihilator 10a 28970 | -1/Command | Allies destroyed Striker 28976 | -1/Command | Allies destroyed Investigator 28979 | -1/Command | P-80 Master assimilated allied Swordsman 10b 29061 | -1/Command | Found Corrupted Prototype Launcher 29108 | -1/Command | Spotted Striker 29117 | -1/Command | Spotted Striker 29118 | -1/Command | P-80 Master assimilated allied B-74 Champion 29123 | -1/Command | Spotted Striker 29123 | -1/Command | Spotted Executioner 29126 | -1/Command | Destroyed Striker 29136 | -1/Command | P-80 Master assimilated allied G-73 Enforcer 29163 | -1/Command | Allies destroyed Striker 29167 | -1/Command | Allies destroyed Striker 29180 | -1/Command | Allies destroyed Executioner 29274 | -1/Command | Spotted Investigator 29298 | -1/Command | Allies destroyed Investigator 29301 | -1/Command | Spotted Striker 29320 | -1/Command | Allies destroyed Striker 29901 | -1/Command | Found Prototype Launcher 34250 | -1/Command | Core integrity fell below 20% 35211 | -1/Command | P-80 Master assimilated allied Rainmaker 10c 35978 | -1/Command | Identified Containment Facilitator (x2) 38301 | -1/Command | Destroyed by H-88 Terminator with KE Penetrator Last Messages --------------- 38297_ Terminator 10i destroyed. 38297_ Network quickbooting H-88 Terminator, ETC: 10. 38298_ System corrupted: Heat flow error (+164). 38298_ Slug penetrates Champion 10r. 38298_ Champion 10r destroyed. 38298_ Acquired 20 matter. 38299_ Slug penetrates Plague 10am. 38299_ Plague 10am destroyed. 38299_ Slug penetrates Enforcer 10cq. 38299_ Enforcer 10cq destroyed. 38299_ Slug penetrates Wall. 38299_ Enforcer 10cv destroyed. 38300_ Destroyed Adv. Phase Shifter. 38300_ Plague 10ak destroyed. 38300_ Slug penetrates H-88 Terminator. 38300_ Slug penetrates Wall. 38301_ RIF automatically installing new Champion 10u system data, ETC: 6. 38301_ RIF automatically installing new Swordsman 10o system data, ETC: 6. 38301_ Acquired 18 matter. 38301_ Champion 10u destroyed. Map ----- +----------------------------------------------------+ | ??????????????????????????????????" ## # | | ?????????????????????????????????"" ## ### | | ????????????????????????????????#"T ## #?# | | ????????????????????????????????#"" ## #?# | | ????????????????????????????????#"" ## #?# | | ????????????????????????????????#"" ## #?# | | ????????????????????????????????#"" ## #?# | | ??????????????????#####?????????#" ## #?# | | ??????????????????# ?????????# ## #?# | | ??????????????????# ?????????# ## #?# | | ??????????????????? ?????????# ## #?# | | ??????????????????? = ??????????? ??# #?# | | ??????????????????? % ??????????###+##?## ### | | ??????????????????? ??????????# ^ ###"% | | ???????????????????# #??????????# | | ???????????????????# #??????????# | | ???????????????????# #??????????# #######" | | ???????????????????# #?????####### ##?????## | | ?????????#??##?????# #?????# #?# #???????# | | ?????????#l%# %???#% #?????# #?# #???????# | | ??????????lbb hh ?#[%#?????# #?# #???????# | | ??????####/b# hh =#%%######## #### #???????# | | ???# x !=*[* !=*%*[!%%= # # #???????##### | | ???# /=[% =%h%!!=*[*= @; " ############# | | ???# =* % %[%=!%[==** # # # "" "" | | ???? !%!*%=%[%%==%%!@ # # # """" """" | | ????######"%###hg[ #==######## #### # """" """" | | ??????????????#*=#?#*%#?????# ?#" # "" "" | | ??????????????#*%??#![#?????# ### + % | | ??????????????#!???#[%#?????# #?# # ! | | ??????????????#????#%!#?????#####?# # | | ???????????????????#=[#??????????## # | | ???????????????????#=%???????????#" # | | ???????????????????#[%???????????## ############# | | ???????????????????%=[????????????# #???????????? | | ???????????????????*==????????????# #???????????? | | ??????????????????? **???????????## #???????????? | | ??????????????????? [[???????????#" #???????????? | | ??????????????????# ???????????## ##+########## | | ??????????????????# ????????????# | | ??????????????????####????????????# | | ??????????????????????????????????# ##/#########+ | | ??????????????????????????????????# #? ?????# | | ??????????????????????????????????# #?? ????# | | ??????????????????????????????????# +??? ???# | | ??????????????????????????????????# #??? ??# | | ??????????????????????????????????#+##????####?# | | ???????????????????????????????????????????????# | | ???????????????????????????????????????????????# | | ???????????????????????????????????????????????### | +----------------------------------------------------+ Best States ------------- Heat Dissipation 89 Energy Generation 29 Energy Capacity 530 Matter Stores 300 Matter Capacity 300 Sight Range 20 Robot Scan Range 14 Terrain Scan Range 24 Terrain Scan Density 60 Additional Mass Support 20 Armor Coverage 1200 Resistance: KI 30 Resistance: EM 30 Core Shielding 30 Propulsion Shielding 66 Utility Shielding 66 Evasion (%) 55 Targeting Accuracy 12 Launcher Accuracy 40 Recoil Reduction 2 Offensive Hacking 10 Relay Coupler Types 547 Relay Coupler Value 8 Item Schematics ----------------- None Robot Schematics ------------------ M-13 Machinist | -10/Mines | Hacked Fabricated ------------ Nothing Alien Tech Used ----------------- None Achievements -------------- None Challenges ------------ None Player 2 | -11 -10 -10 -9 -9 -9 -8 -8 -7 -7 -7 -7 -6 -6 -5 -5 -4 -4 -4 -4 -3 -3 -3 -2 -2 -1 -1 -1 -1 ---------- Run | Scr Mat Min Mat Sto Gar Mat Gar Fac Gar Fac Gar Fac Gar Fac Gar Fac Gar Fac Gar Res Gar Arm Res Gar Acc Gar Acc Com Slots Evolved 18 | . . 2 . . 2 . 2 . . . 2 . 2 . 2 . . . 2 . . 2 . 2 . . . . Power 3 | . . . . . . . . . . . 1 . . . . . . . 1 . . . . 1 . . . . Propulsion 3 | . . . . . . . 1 . . . . . 1 . . . . . . . . . . 1 . . . . Utility 8 | . . 1 . . 1 . . . . . 1 . 1 . 1 . . . 1 . . 2 . . . . . . Weapon 4 | . . 1 . . 1 . 1 . . . . . . . 1 . . . . . . . . . . . . . Parts Attached 543 | . 14 . 2 13 2 1 6 10 7 2 8 25 18 8 7 23 8 3 6 65 2 28 2 25 1 34 57 166 Parts Lost 143 | . 1 . . 2 . . 3 . 1 1 2 5 10 . 1 3 . . . 28 . 8 . 18 . 5 20 35 Damage Taken 25546 | . 352 . 29 530 85 . 404 . 375 37 301 1119 1073 20 245 503 192 . 369 4151 144 1717 . 1829 . 1253 2864 7954 Core 2459 | . 33 . . 34 12 . 69 . 18 4 15 110 109 . . 18 48 . 22 489 . 242 . 194 . 118 282 642 Player 2/Cogmind (%) 59 | . 75 . . 40 34 . 100 . 48 100 25 57 41 . . 26 32 . 37 61 . 77 . 100 . 100 80 56 Absorbed by Shields 1505 | . . . . . . . . . 140 17 50 22 145 . . . . . . 744 34 241 . 16 . . . 96 Damage Inflicted 62231 | . 741 18 76 1560 1007 . 718 . 1167 67 1061 1812 1564 112 1092 2228 641 189 1506 7648 699 3581 . 1032 . 3098 7737 22877 Player 2/Cogmind (%) 73 | . 58 12 50 60 55 . 53 . 78 100 61 74 62 100 90 83 79 100 90 76 78 73 . 60 . 94 77 73 Combat Hostiles Destroyed 324 | . 12 1 2 14 7 . 9 . 17 . 15 10 11 1 6 10 7 . 12 26 2 12 . 4 . 14 34 98 Player 2/Cogmind (%) 75 | . 66 20 50 73 35 . 75 . 77 . 68 76 55 100 85 90 100 . 100 70 100 92 . 66 . 93 91 76 Game ------ Seed NuclearScatterInterpreter Manual? 0 Play Time 04:11:59 Cumulative 2114.4 hours Start 2021.08.11 @ 11:34:23 End 2021.08.11 @ 16:15:06 Sessions 3 Manual Loads 0 Difficulty Rogue Special Mode AFD2020/Player2 Game No. 2644 Rogue 2636 Adventurer 0 Explorer 8 Win Type - Total 238 Types 45/31/89/3/3/5/59/2/1 Lore% 100 Gallery% 99 Achievement% 100 Wizard Run 0 Options --------- ASCII 0 Keyboard 0 Movement Vi Keybinds 1 Fullscreen 1 Font 18/SmallcapsGlow Map View 76x50 Tactical HUD 1 Map Filters NONE Filters NONE Steam 1 RUN: 9e09a226-4d82-4f80-b944-1728c1a371e5